[Event "2nd Irena Warakomska Memorial-A"]
[Site "Suwalki"]
[Date "2018.08.06"]
[Round "7"]
[White "Kumala, Aleksander"]
[Black "Maj, Pawel"]
[Result "1/2-1/2"]
[ECO "A45"]
[WhiteElo "2238"]
[BlackElo "2071"]
[Annotator "NA"]
[PlyCount "42"]
[EventDate "2018.08.01"]
[EventType "swiss"]
[EventCountry "POL"]
[SourceTitle "playchess.com"]
[Source "ChessBase"]
[SourceQuality "1"]
[TimeControl "40/5400+30:1800+30"]

1. d4 {[%emt 0:00:00]} Nf6 {[%emt 0:00:00]} 2. Bg5 {[%emt 0:00:00]} e6 {[%emt 0:00:00]} 3. e4 {[%emt 0:00:00]} h6 {[%emt 0:00:00]} 4. Bxf6 {[%emt 0:00:00]} Qxf6 {[%emt 0:00:00]} 5. c3 {[%emt 0:00:00]} d6 {[%emt 0:00:18]} 6. Bd3 {[%emt 0:00:18]} Nd7 {[%emt 0:00:37]} 7. Ne2 {[%emt 0:00:08]} e5 {[%emt 0:02:02]} 8. O-O {[%emt 0:00:31]} Qe7 {[%emt 0:00:56]} 9. f4 {[%emt 0:00:39]} g6 {[%emt 0:03:22]} 10. Nd2 {[%emt 0:15:42]} Bg7 {[%emt 0:00:27]} 11. Nc4 {[%emt 0:00:17]} O-O {[%emt 0:02:59]} 12. Ne3 {[%emt 0:00:20]} Nf6 {[%emt 0:03:29]} 13. Qc2 {[%emt 0:03:59]} Re8 {[%emt 0:11:53]} 14. Rae1 {[%emt 0:01:07]} c6 {[%emt 0:03:02]} 15. Ng3 {[%emt 0:06:48]} h5 {[%emt 0:06:36]} 16. dxe5 {[%emt 0:02:03]} dxe5 {[%emt 0:00:12]} 17. f5 {[%emt 0:00:18]} Bh6 {[%emt 0:04:08]} 18. fxg6 {[%emt 0:04:46]} fxg6 {[%emt 0:01:30]} 19. Nh1 {[%emt 0:10:35]} Be6 {[%emt 0:06:19]} 20. Nf2 {[%emt 0:05:23]} Qc5 {[%emt 0:08:13]} 21. b4 {[%emt 0:00:11]} Qb6 {[%emt 0:04:46]} 1/2-1/2

[Event "2nd Irena Warakomska Memorial-A"]
[Site "Suwalki"]
[Date "2018.08.06"]
[Round "7"]
[White "Pietruszewski, Marcin"]
[Black "Kowalski, Igor"]
[Result "1-0"]
[ECO "B12"]
[WhiteElo "2208"]
[BlackElo "2323"]
[Annotator "NA"]
[PlyCount "91"]
[EventDate "2018.08.01"]
[EventType "swiss"]
[EventCountry "POL"]
[SourceTitle "playchess.com"]
[Source "ChessBase"]
[SourceQuality "1"]
[TimeControl "40/5400+30:1800+30"]

1. e4 {[%emt 0:00:00]} c6 {[%emt 0:00:00]} 2. d4 {[%emt 0:00:00]} d5 {[%emt 0:00:00]} 3. e5 {[%emt 0:00:00]} Bf5 {[%emt 0:00:00]} 4. Nf3 {[%emt 0:00:00]} e6 {[%emt 0:00:00]} 5. Be2 {[%emt 0:00:00]} Nd7 {[%emt 0:00:00]} 6. O-O {[%emt 0:00:02]} h6 {[%emt 0:00:00]} 7. Nbd2 {[%emt 0:01:15]} Ne7 {[%emt 0:00:00]} 8. Nb3 {[%emt 0:01:13]} Bh7 {[%emt 0:00:13]} 9. a4 {[%emt 0:01:08]} Nf5 {[%emt 0:00:10]} 10. a5 {[%emt 0:06:26]} a6 {[%emt 0:00:30]} 11. c4 {[%emt 0:03:11]} dxc4 {[%emt 0:00:21]} 12. Bxc4 {[%emt 0:00:02]} Ne7 {[%emt 0:00:19]} 13. Ne1 {[%emt 0:00:16]} c5 {[%emt 0:02:37]} 14. Nf3 {[%emt 0:06:03]} Be4 {[%emt 0:06:50]} 15. Nxc5 {[%emt 0:07:47]} Nxc5 {[%emt 0:00:28]} 16. dxc5 {[%emt 0:00:02]} Nc6 {[%emt 0:10:00]} 17. Be3 {[%emt 0:06:55]} Qxd1 {[%emt 0:20:28]} 18. Rfxd1 {[%emt 0:00:38]} Bxf3 {[%emt 0:00:05]} 19. gxf3 {[%emt 0:00:05]} Nxe5 {[%emt 0:00:07]} 20. Be2 {[%emt 0:04:23]} Be7 {[%emt 0:00:20]} 21. b4 {[%emt 0:16:25]} O-O {[%emt 0:00:59]} 22. f4 {[%emt 0:11:24]} Nc6 {[%emt 0:00:26]} 23. Rd7 {[%emt 0:00:02]} Bf6 {[%emt 0:01:21]} 24. Rb1 {[%emt 0:15:55]} Rfb8 {[%emt 0:03:16]} 25. Bf3 {[%emt 0:03:33]} Bc3 {[%emt 0:00:51]} 26. Rxb7 {[%emt 0:00:28]} Rxb7 {[%emt 0:01:08]} 27. Bxc6 {[%emt 0:00:02]} Rab8 {[%emt 0:00:38]} 28. Bxb7 {[%emt 0:00:35]} Rxb7 {[%emt 0:00:05]} 29. c6 {[%emt 0:00:12]} Rc7 {[%emt 0:01:54]} 30. Rc1 {[%emt 0:00:11]} Bxb4 {[%emt 0:10:05]} 31. Bb6 {[%emt 0:01:17]} Rc8 {[%emt 0:00:12]} 32. c7 {[%emt 0:00:13]} Kf8 {[%emt 0:02:59]} 33. Rd1 {[%emt 0:00:04]} Be7 {[%emt 0:00:04]} 34. Rd8+ {[%emt 0:00:22]} Bxd8 {[%emt 0:00:03]} 35. cxd8=Q+ {[%emt 0:00:07]} Rxd8 {[%emt 0:00:03]} 36. Bxd8 {[%emt 0:00:02]} Ke8 {[%emt 0:00:06]} 37. Bb6 {[%emt 0:00:13]} Kd7 {[%emt 0:00:06]} 38. Kg2 {[%emt 0:00:13]} Kd6 {[%emt 0:00:06]} 39. Kf3 {[%emt 0:00:09]} Kd5 {[%emt 0:00:49]} 40. Ke3 {[%emt 0:00:00]} f6 {[%emt 0:00:00]} 41. Bd8 {[%emt 0:03:34]} f5 {[%emt 0:03:14]} 42. Be7 {[%emt 0:02:55]} e5 {[%emt 0:02:04]} 43. Bf8 {[%emt 0:00:32]} g5 {[%emt 0:00:10]} 44. Bxh6 {[%emt 0:00:19]} gxf4+ {[%emt 0:00:13]} 45. Bxf4 {[%emt 0:00:25]} exf4+ {[%emt 0:00:37]} 46. Kxf4 {[%emt 0:01:14]} 1-0

[Event "2nd Irena Warakomska Memorial-A"]
[Site "Suwalki"]
[Date "2018.08.06"]
[Round "7"]
[White "Lewtak, Dominik"]
[Black "Lisowski, Krzysztof"]
[Result "1-0"]
[ECO "B31"]
[WhiteElo "2164"]
[BlackElo "2072"]
[Annotator "NA"]
[PlyCount "179"]
[EventDate "2018.08.01"]
[EventType "swiss"]
[EventCountry "POL"]
[SourceTitle "playchess.com"]
[Source "ChessBase"]
[SourceQuality "1"]
[TimeControl "40/5400+30:1800+30"]

1. e4 {[%emt 0:00:00]} c5 {[%emt 0:00:00]} 2. Nf3 {[%emt 0:00:00]} Nc6 {[%emt 0:00:00]} 3. Bb5 {[%emt 0:00:00]} g6 {[%emt 0:00:25]} 4. O-O {[%emt 0:00:06]} Bg7 {[%emt 0:00:45]} 5. Re1 {[%emt 0:00:16]} Nf6 {[%emt 0:14:17]} 6. Nc3 {[%emt 0:00:30]} O-O {[%emt 0:01:17]} 7. e5 {[%emt 0:01:11]} Ne8 {[%emt 0:00:20]} 8. d3 {[%emt 0:01:19]} Nc7 {[%emt 0:06:26]} 9. Bxc6 dxc6 {[%emt 0:04:07]} 10. Bg5 {[%emt 0:06:23]} Bg4 {[%emt 0:07:58]} 11. h3 {[%emt 0:02:33]} Bxf3 {[%emt 0:00:11]} 12. Qxf3 {[%emt 0:00:06]} Ne6 {[%emt 0:01:06]} 13. Bh4 Qc7 {[%emt 0:17:14]} 14. Bg3 {[%emt 0:02:26]} Rad8 15. b3 {[%emt 0:06:29]} Qa5 {[%emt 0:10:51]} 16. Ne2 {[%emt 0:05:48]} Rd5 {[%emt 0:00:55]} 17. Qe4 {[%emt 0:05:26]} Rfd8 {[%emt 0:08:34]} 18. a4 {[%emt 0:01:11]} Bh6 {[%emt 0:08:37]} 19. Rad1 {[%emt 0:04:25]} Qb4 {[%emt 0:02:13]} 20. Qxb4 {[%emt 0:02:46]} cxb4 {[%emt 0:00:04]} 21. f4 {[%emt 0:00:24]} f6 {[%emt 0:06:00]} 22. exf6 {[%emt 0:02:07]} exf6 {[%emt 0:00:04]} 23. Nc3 {[%emt 0:00:58]} bxc3 {[%emt 0:01:57]} 24. Rxe6 {[%emt 0:00:06]} Kf7 {[%emt 0:01:00]} 25. Rde1 {[%emt 0:00:25]} R8d7 26. R6e4 f5 {[%emt 0:04:54]} 27. Rc4 {[%emt 0:05:29]} Rd4 {[%emt 0:02:27]} 28. Rxd4 {[%emt 0:01:21]} Rxd4 {[%emt 0:00:05]} 29. Bf2 {[%emt 0:00:17]} Rd7 {[%emt 0:00:58]} 30. g3 {[%emt 0:00:38]} a6 {[%emt 0:00:28]} 31. Re5 {[%emt 0:00:36]} Bg7 {[%emt 0:00:42]} 32. Rc5 {[%emt 0:00:40]} Ke6 {[%emt 0:00:13]} 33. Rc4 {[%emt 0:01:13]} Kd5 34. a5 {[%emt 0:02:09]} Ke6 {[%emt 0:01:24]} 35. Kf1 Rd5 {[%emt 0:00:59]} 36. Bb6 {[%emt 0:01:48]} Bf6 {[%emt 0:00:31]} 37. Ke2 Rd7 {[%emt 0:00:31]} 38. d4 {[%emt 0:01:38]} g5 39. fxg5 {[%emt 0:00:00]} Bxg5 {[%emt 0:00:45]} 40. Rxc3 {[%emt 0:00:00]} Rg7 41. Kf3 Be7 {[%emt 0:07:38]} 42. Re3+ {[%emt 0:03:49]} Kd7 {[%emt 0:02:15]} 43. Bc5 {[%emt 0:02:15]} Bd8 {[%emt 0:00:43]} 44. Bb4 {[%emt 0:10:10]} Bc7 {[%emt 0:09:01]} 45. Be1 {[%emt 0:01:17]} Rf7 46. Ke2 f4 {[%emt 0:02:06]} 47. gxf4 {[%emt 0:00:35]} Bxf4 48. Rf3 {[%emt 0:01:33]} Re7+ {[%emt 0:01:44]} 49. Kd3 {[%emt 0:01:15]} Bc7 {[%emt 0:02:09]} 50. Bd2 {[%emt 0:00:51]} Rg7 {[%emt 0:03:15]} 51. b4 Ke6 {[%emt 0:05:02]} 52. h4 {[%emt 0:03:18]} Bd8 53. h5 {[%emt 0:01:03]} Bf6 {[%emt 0:00:53]} 54. c3 {[%emt 0:02:44]} Rg2 55. Be3 {[%emt 0:01:47]} Rh2 {[%emt 0:00:57]} 56. h6 {[%emt 0:00:05]} Be7 {[%emt 0:01:09]} 57. Kc4 {[%emt 0:00:41]} Rh5 {[%emt 0:00:18]} 58. Bf4 {[%emt 0:02:29]} Rh1 {[%emt 0:01:20]} 59. Rg3 {[%emt 0:01:09]} Bf8 {[%emt 0:00:40]} 60. Re3+ {[%emt 0:01:10]} Kd7 {[%emt 0:00:20]} 61. Bg5 {[%emt 0:01:22]} Rh5 62. Re5 {[%emt 0:02:00]} Bd6 {[%emt 0:00:49]} 63. Rf5 {[%emt 0:00:59]} Be7 {[%emt 0:00:13]} 64. Rf7 {[%emt 0:00:20]} Rxg5 {[%emt 0:00:05]} 65. Rxh7 {[%emt 0:00:06]} Rh5 {[%emt 0:00:51]} 66. Rh8 Bf6 {[%emt 0:01:39]} 67. Rh7+ {[%emt 0:00:23]} Be7 {[%emt 0:00:41]} 68. Rh8 {[%emt 0:00:46]} Bg5 69. h7 {[%emt 0:00:23]} Bf6 {[%emt 0:00:46]} 70. Rf8 {[%emt 0:00:14]} Ke6 {[%emt 0:00:24]} 71. Re8+ {[%emt 0:00:29]} Kf5 {[%emt 0:00:59]} 72. h8=Q {[%emt 0:00:14]} Bxh8 {[%emt 0:01:04]} 73. Re7 {[%emt 0:00:07]} Bf6 {[%emt 0:00:34]} 74. Rxb7 {[%emt 0:00:25]} Rh8 {[%emt 0:00:26]} 75. Rc7 Ra8 76. Rxc6 {[%emt 0:00:36]} Bg5 {[%emt 0:00:53]} 77. Kc5 {[%emt 0:00:48]} Bd8 {[%emt 0:00:16]} 78. Kd5 {[%emt 0:01:24]} Bf6 {[%emt 0:00:48]} 79. Kd6 Bd8 80. Kd7 {[%emt 0:04:52]} Bg5 {[%emt 0:00:35]} 81. Kc7 {[%emt 0:00:49]} Bd2 {[%emt 0:00:59]} 82. Kb7 {[%emt 0:00:15]} Rh8 {[%emt 0:00:21]} 83. Kxa6 {[%emt 0:00:46]} Rh3 84. Kb6 {[%emt 0:05:49]} Bxc3 {[%emt 0:00:13]} 85. Rxc3 {[%emt 0:00:36]} Rxc3 {[%emt 0:00:04]} 86. a6 Rc4 {[%emt 0:01:34]} 87. b5 {[%emt 0:00:12]} Rxd4 {[%emt 0:00:51]} 88. a7 {[%emt 0:00:05]} Rd8 89. Kc7 Ra8 {[%emt 0:01:03]} 90. Kb7 {[%emt 0:00:51]} 1-0

[Event "2nd Irena Warakomska Memorial-A"]
[Site "Suwalki"]
[Date "2018.08.06"]
[Round "7"]
[White "Zielinski, Wojciech"]
[Black "Krzywda, Andrzej"]
[Result "1/2-1/2"]
[ECO "B40"]
[WhiteElo "2157"]
[BlackElo "2258"]
[Annotator "NA"]
[PlyCount "125"]
[EventDate "2018.08.01"]
[EventType "swiss"]
[EventCountry "POL"]
[SourceTitle "playchess.com"]
[Source "ChessBase"]
[SourceQuality "1"]
[TimeControl "40/5400+30:1800+30"]

1. e4 c5 2. Nf3 e6 3. c4 d6 4. d4 cxd4 5. Nxd4 Nf6 6. Nc3 a6 7. Be2 b6 8. Be3 Bb7 9. f3 Nbd7 10. O-O Be7 11. Rc1 Qc7 12. Qd2 Rc8 13. Rfd1 Qb8 14. b3 O-O 15. a4 Rfe8 16. Kh1 Bd8 17. Bf1 Bc7 18. h3 Rcd8 19. b4 Ne5 20. a5 bxa5 21. b5 Qa8 22. Rb1 Nh5 23. Qf2 Rc8 24. bxa6 Bxa6 25. Ndb5 Bb8 26. Na4 Qc6 27. Nb6 Rcd8 28. Nd4 Qc7 29. Nb5 Bxb5 30. Rxb5 d5 31. f4 Ng6 32. e5 f6 33. g4 Nhxf4 34. Bxf4 Nxf4 35. Qxf4 fxe5 36. Qg3 dxc4 37. Rxd8 Rxd8 38. Bxc4 Qc6+ 39. Kg1 Rd1+ 40. Kf2 Qh1 41. Ke3 Ba7 42. Bxe6+ Kh8 43. Bb3 Rg1 44. Qf2 Qxh3+ 45. Ke4 Rxg4+ 46. Kd5 Rf4 47. Qc5 Qd3+ 48. Kc6 Qd8 49. Kb7 Qb8+ 50. Ka6 Rf6 51. Kxa5 Bxb6+ 52. Rxb6 Qd8 53. Kb5 Rxb6+ 54. Qxb6 Qxb6+ 55. Kxb6 g5 56. Bd1 Kg7 57. Kc5 Kf6 58. Kd5 Kf5 59. Bc2+ Kf4 60. Bxh7 g4 61. Be4 g3 62. Bg2 Kf5 63. Be4+ 1/2-1/2

[Event "2nd Irena Warakomska Memorial-A"]
[Site "Suwalki"]
[Date "2018.08.06"]
[Round "7"]
[White "Ocytko, Andrzej"]
[Black "Buraczewski, Rafal"]
[Result "0-1"]
[ECO "C01"]
[WhiteElo "2155"]
[BlackElo "2221"]
[Annotator "NA"]
[PlyCount "96"]
[EventDate "2018.08.01"]
[EventType "swiss"]
[EventCountry "POL"]
[SourceTitle "playchess.com"]
[Source "ChessBase"]
[SourceQuality "1"]
[TimeControl "40/5400+30:1800+30"]

1. e4 {[%emt 0:00:00]} e6 {[%emt 0:00:22]} 2. d4 {[%emt 0:01:50]} d5 {[%emt 0:00:05]} 3. exd5 {[%emt 0:00:07]} exd5 {[%emt 0:00:28]} 4. Nf3 {[%emt 0:00:15]} Nc6 {[%emt 0:00:05]} 5. Bd3 {[%emt 0:00:21]} Bd6 {[%emt 0:00:05]} 6. c3 {[%emt 0:01:11]} Nge7 {[%emt 0:00:06]} 7. Qc2 {[%emt 0:01:57]} Bg4 {[%emt 0:01:15]} 8. Bg5 {[%emt 0:00:31]} Qd7 {[%emt 0:00:46]} 9. Nbd2 {[%emt 0:01:40]} f6 {[%emt 0:01:41]} 10. Bh4 {[%emt 0:04:34]} Bf5 {[%emt 0:00:27]} 11. O-O-O {[%emt 0:04:54]} O-O-O {[%emt 0:00:24]} 12. Bg3 {[%emt 0:00:36]} Bxd3 {[%emt 0:04:40]} 13. Qxd3 {[%emt 0:00:03]} Nf5 {[%emt 0:01:42]} 14. Rde1 {[%emt 0:03:38]} g6 {[%emt 0:10:36]} 15. Re2 {[%emt 0:03:49]} Rde8 {[%emt 0:00:55]} 16. Rhe1 {[%emt 0:00:10]} Rxe2 {[%emt 0:02:33]} 17. Qxe2 {[%emt 0:02:08]} Bxg3 {[%emt 0:00:12]} 18. hxg3 {[%emt 0:02:10]} Nd6 {[%emt 0:00:07]} 19. Qe3 {[%emt 0:12:00]} g5 {[%emt 0:20:08]} 20. Qe6 {[%emt 0:09:57]} Qxe6 {[%emt 0:01:07]} 21. Rxe6 {[%emt 0:00:01]} Rf8 {[%emt 0:00:25]} 22. Re1 {[%emt 0:03:30]} Kd7 {[%emt 0:02:46]} 23. Rh1 {[%emt 0:01:42]} Rf7 {[%emt 0:00:10]} 24. g4 {[%emt 0:01:54]} Ke7 {[%emt 0:01:33]} 25. Kd1 {[%emt 0:09:35]} Kf8 {[%emt 0:00:25]} 26. Nf1 {[%emt 0:07:06]} Ne4 {[%emt 0:03:43]} 27. Ke2 {[%emt 0:00:06]} Na5 {[%emt 0:20:26]} 28. Ne3 {[%emt 0:03:00]} c6 {[%emt 0:00:05]} 29. Nd2 {[%emt 0:06:50]} Nd6 {[%emt 0:00:04]} 30. Kd3 {[%emt 0:01:51]} b5 {[%emt 0:00:52]} 31. b3 {[%emt 0:00:25]} f5 {[%emt 0:01:04]} 32. gxf5 {[%emt 0:03:40]} Kg7 {[%emt 0:01:59]} 33. g4 {[%emt 0:01:26]} Nab7 {[%emt 0:00:14]} 34. Nf3 {[%emt 0:01:33]} Ne4 {[%emt 0:00:12]} 35. Rh2 {[%emt 0:00:07]} Rc7 {[%emt 0:00:37]} 36. Ne5 {[%emt 0:00:41]} Nbd6 {[%emt 0:00:06]} 37. f3 {[%emt 0:00:57]} Nf6 {[%emt 0:00:23]} 38. c4 {[%emt 0:04:10]} h5 {[%emt 0:01:33]} 39. Rc2 {[%emt 0:01:28]} bxc4+ {[%emt 0:03:00]} 40. bxc4 {[%emt 0:00:00]} dxc4+ {[%emt 0:00:00]} 41. N3xc4 {[%emt 0:00:46]} Nxc4 {[%emt 0:00:34]} 42. Kxc4 {[%emt 0:05:19]} h4 {[%emt 0:00:54]} 43. Kc5 {[%emt 0:01:18]} Nd5 {[%emt 0:01:38]} 44. Nxc6 {[%emt 0:03:03]} Rxc6+ {[%emt 0:00:38]} 45. Kxc6 {[%emt 0:00:44]} Nb4+ {[%emt 0:00:05]} 46. Kc7 {[%emt 0:00:02]} Nxc2 {[%emt 0:00:08]} 47. d5 {[%emt 0:00:08]} Nd4 {[%emt 0:02:01]} 48. a4 {[%emt 0:00:01]} Nxf3 {[%emt 0:00:45]} 0-1

[Event "2nd Irena Warakomska Memorial-A"]
[Site "Suwalki"]
[Date "2018.08.06"]
[Round "7"]
[White "Ulanowski, Karol"]
[Black "Zaika, Daniil"]
[Result "0-1"]
[ECO "B94"]
[WhiteElo "2149"]
[BlackElo "2213"]
[Annotator "NA"]
[PlyCount "220"]
[EventDate "2018.08.01"]
[EventType "swiss"]
[EventCountry "POL"]
[SourceTitle "playchess.com"]
[Source "ChessBase"]
[SourceQuality "1"]
[TimeControl "40/5400+30:1800+30"]

1. e4 {[%emt 0:00:00]} c5 {[%emt 0:00:00]} 2. Nf3 {[%emt 0:00:00]} d6 {[%emt 0:00:00]} 3. d4 {[%emt 0:00:00]} cxd4 {[%emt 0:00:09]} 4. Nxd4 {[%emt 0:00:00]} Nf6 {[%emt 0:00:09]} 5. Nc3 {[%emt 0:00:00]} a6 {[%emt 0:00:11]} 6. Bg5 {[%emt 0:00:00]} Nbd7 {[%emt 0:00:21]} 7. Bc4 {[%emt 0:00:00]} Qc7 {[%emt 0:01:08]} 8. Qe2 {[%emt 0:00:24]} h6 {[%emt 0:00:52]} 9. Bh4 {[%emt 0:01:30]} g6 {[%emt 0:01:51]} 10. Nd5 {[%emt 0:09:01]} Nxd5 {[%emt 0:04:23]} 11. exd5 {[%emt 0:00:09]} Ne5 {[%emt 0:00:44]} 12. Bb3 {[%emt 0:00:13]} g5 {[%emt 0:15:29]} 13. Bg3 {[%emt 0:01:45]} Bg7 {[%emt 0:00:06]} 14. h4 {[%emt 0:12:50]} Bd7 {[%emt 0:08:42]} 15. O-O-O {[%emt 0:09:59]} O-O-O {[%emt 0:00:57]} 16. Kb1 {[%emt 0:05:15]} Kb8 {[%emt 0:02:50]} 17. f3 {[%emt 0:07:04]} Rc8 {[%emt 0:04:11]} 18. Bf2 {[%emt 0:00:48]} b5 {[%emt 0:07:31]} 19. Rc1 {[%emt 0:10:12]} Bf6 {[%emt 0:05:28]} 20. h5 {[%emt 0:09:07]} Nc4 {[%emt 0:05:08]} 21. Rhd1 {[%emt 0:02:38]} g4 {[%emt 0:04:29]} 22. f4 {[%emt 0:07:13]} g3 {[%emt 0:03:09]} 23. Bg1 {[%emt 0:00:05]} Rhg8 {[%emt 0:01:06]} 24. Rd3 {[%emt 0:00:16]} Qb7 {[%emt 0:04:31]} 25. Qf3 {[%emt 0:04:24]} Bg4 {[%emt 0:08:47]} 26. Qe4 {[%emt 0:00:40]} e6 {[%emt 0:00:09]} 27. Qe1 {[%emt 0:08:22]} Qxd5 {[%emt 0:04:40]} 28. a4 {[%emt 0:00:44]} Qb7 {[%emt 0:09:06]} 29. axb5 {[%emt 0:01:20]} axb5 {[%emt 0:01:02]} 30. Qb4 {[%emt 0:00:27]} Bxd4 {[%emt 0:05:28]} 31. Bxd4 {[%emt 0:00:07]} Be2 {[%emt 0:00:52]} 32. Bxc4 {[%emt 0:04:01]} Rxc4 {[%emt 0:00:04]} 33. Qxd6+ {[%emt 0:00:15]} Qc7 {[%emt 0:00:07]} 34. Qa3 {[%emt 0:02:01]} Bxd3 {[%emt 0:02:13]} 35. Be5 {[%emt 0:00:13]} Bxc2+ {[%emt 0:00:14]} 36. Rxc2 {[%emt 0:01:10]} Rxc2 {[%emt 0:00:04]} 37. Qa6 {[%emt 0:02:10]} Qxe5 {[%emt 0:01:35]} 38. fxe5 {[%emt 0:00:12]} Rc7 {[%emt 0:00:35]} 39. Qxb5+ {[%emt 0:00:52]} Rb7 {[%emt 0:00:08]} 40. Qc5 {[%emt 0:00:00]} Ka8 {[%emt 0:00:00]} 41. Qa5+ {[%emt 0:05:28]} Kb8 {[%emt 0:02:09]} 42. Qa3 {[%emt 0:01:52]} Kc7 {[%emt 0:09:02]} 43. Qd6+ {[%emt 0:05:32]} Kc8 {[%emt 0:00:07]} 44. b4 {[%emt 0:04:44]} Rd8 {[%emt 0:01:26]} 45. Qc5+ {[%emt 0:06:51]} Kd7 {[%emt 0:01:57]} 46. Qd4+ {[%emt 0:03:59]} Ke8 {[%emt 0:00:55]} 47. Qf4 {[%emt 0:00:26]} Rd5 {[%emt 0:02:25]} 48. Kc2 {[%emt 0:01:19]} Rbb5 {[%emt 0:04:38]} 49. Qxh6 {[%emt 0:00:39]} Rxe5 {[%emt 0:00:06]} 50. Qh8+ {[%emt 0:00:17]} Ke7 {[%emt 0:00:05]} 51. h6 {[%emt 0:00:16]} Re2+ {[%emt 0:03:11]} 52. Kd3 {[%emt 0:05:14]} Rxg2 {[%emt 0:00:05]} 53. Qc8 {[%emt 0:02:13]} Rd5+ {[%emt 0:00:55]} 54. Ke3 {[%emt 0:00:56]} Rh2 {[%emt 0:01:02]} 55. Qc7+ {[%emt 0:00:14]} Kf6 {[%emt 0:00:57]} 56. Qxg3 {[%emt 0:00:51]} Rxh6 {[%emt 0:00:14]} 57. Qf2+ {[%emt 0:00:44]} Ke7 {[%emt 0:00:30]} 58. Qb2 {[%emt 0:00:19]} Rhh5 {[%emt 0:00:06]} 59. Ke4 {[%emt 0:00:25]} Rh4+ {[%emt 0:01:10]} 60. Kf3 {[%emt 0:00:21]} Rb5 {[%emt 0:00:26]} 61. Qc2 {[%emt 0:00:09]} Rhxb4 {[%emt 0:01:29]} 62. Qc7+ {[%emt 0:00:06]} Kf6 {[%emt 0:00:07]} 63. Qd8+ {[%emt 0:00:57]} Kg7 {[%emt 0:00:07]} 64. Qe7 {[%emt 0:00:08]} Rf5+ {[%emt 0:00:33]} 65. Ke3 {[%emt 0:00:06]} Rbf4 {[%emt 0:01:02]} 66. Ke2 {[%emt 0:00:20]} e5 {[%emt 0:01:17]} 67. Ke3 {[%emt 0:00:11]} Rd4 {[%emt 0:01:25]} 68. Ke2 {[%emt 0:00:17]} Rh5 {[%emt 0:00:41]} 69. Kf3 {[%emt 0:00:36]} Rf4+ {[%emt 0:01:11]} 70. Ke3 {[%emt 0:00:21]} Rf6 {[%emt 0:00:45]} 71. Qd8 {[%emt 0:01:03]} Re6 {[%emt 0:01:08]} 72. Qd1 {[%emt 0:01:21]} Kg6 {[%emt 0:00:31]} 73. Qg4+ {[%emt 0:00:42]} Rg5 {[%emt 0:00:12]} 74. Qh4 {[%emt 0:00:04]} Rh5 {[%emt 0:03:14]} 75. Qg4+ {[%emt 0:00:03]} Rg5 {[%emt 0:00:03]} 76. Qh4 {[%emt 0:00:01]} Re8 {[%emt 0:01:27]} 77. Qe4+ {[%emt 0:01:26]} Kg7 {[%emt 0:00:06]} 78. Qh4 {[%emt 0:00:22]} f6 {[%emt 0:00:11]} 79. Kf3 {[%emt 0:00:39]} e4+ {[%emt 0:00:31]} 80. Ke3 {[%emt 0:00:06]} Kg6 {[%emt 0:00:12]} 81. Qf4 {[%emt 0:00:28]} Ree5 {[%emt 0:01:17]} 82. Qh4 {[%emt 0:00:10]} Kg7 {[%emt 0:00:45]} 83. Qh3 {[%emt 0:00:40]} Re7 {[%emt 0:01:17]} 84. Qh4 {[%emt 0:00:14]} Kg6 {[%emt 0:01:19]} 85. Qf4 {[%emt 0:00:27]} Ree5 {[%emt 0:00:46]} 86. Qh4 {[%emt 0:00:44]} Kg7 {[%emt 0:00:07]} 87. Qh3 {[%emt 0:00:13]} Re7 {[%emt 0:00:52]} 88. Qh4 {[%emt 0:01:17]} Ra7 {[%emt 0:00:19]} 89. Qh2 {[%emt 0:00:37]} Rg4 {[%emt 0:00:44]} 90. Qb2 {[%emt 0:00:18]} Rd7 {[%emt 0:00:12]} 91. Qb5 {[%emt 0:00:23]} Rd3+ {[%emt 0:00:15]} 92. Kf2 {[%emt 0:00:06]} Rf3+ {[%emt 0:00:16]} 93. Ke2 {[%emt 0:00:04]} Kh6 {[%emt 0:01:33]} 94. Qe8 {[%emt 0:00:22]} Kg5 {[%emt 0:00:35]} 95. Qg8+ {[%emt 0:00:12]} Kh4 {[%emt 0:00:07]} 96. Qh8+ {[%emt 0:00:25]} Kg3 {[%emt 0:00:08]} 97. Qb8+ {[%emt 0:00:08]} Kg2 {[%emt 0:00:09]} 98. Qb6 {[%emt 0:00:28]} f5 {[%emt 0:00:12]} 99. Qd4 {[%emt 0:00:47]} Rgg3 {[%emt 0:00:15]} 100. Qe5 {[%emt 0:01:10]} e3 {[%emt 0:01:11]} 101. Qd5 {[%emt 0:00:24]} Kg1 {[%emt 0:00:40]} 102. Qd1+ {[%emt 0:02:59]} Kh2 {[%emt 0:00:06]} 103. Qd6 {[%emt 0:00:41]} Rf2+ {[%emt 0:00:12]} 104. Ke1 {[%emt 0:00:05]} f4 {[%emt 0:00:22]} 105. Qh6+ {[%emt 0:00:20]} Kg1 {[%emt 0:00:07]} 106. Qf6 {[%emt 0:01:08]} Rgg2 {[%emt 0:00:16]} 107. Qa6 {[%emt 0:00:38]} f3 {[%emt 0:00:40]} 108. Qb5 {[%emt 0:00:43]} Re2+ {[%emt 0:00:07]} 109. Kd1 {[%emt 0:00:10]} Rd2+ {[%emt 0:00:08]} 110. Kc1 {[%emt 0:00:06]} Rc2+ {[%emt 0:00:06]} 0-1